[Event "Titled Tuesday Blitz May 16 Early 2023"]
[White "Tabatabaei, M. Amin"]
[Black "Zherebukh, Yaroslav"]
[WhiteFideId "12521213"]
[BlackFideId "14116804"]
[WhiteElo "2575"]
[BlackElo "2531"]
[Result "1-0"]
[Round "08"]
[TimeControl "180+2"]
[Date "2023.05.16"]
[WhiteClock "0:00:53"]
[BlackClock "0:00:00"]

1. c4 {[%clk 0:03:00]}  Nf6 {[%clk 0:02:58]} 2. g3 {[%clk 0:03:00]}  c6 {[%clk 0:02:57]} 3. d4 {[%clk 0:03:00]}  d5 {[%clk 0:02:57]} 4. Bg2 {[%clk 0:03:00]}  g6 {[%clk 0:02:57]} 5. Qa4 {[%clk 0:03:00]}  Bg7 {[%clk 0:02:57]} 6. cxd5 {[%clk 0:02:59]}  Nxd5 {[%clk 0:02:58]} 7. Nf3 {[%clk 0:02:59]}  Nb6 {[%clk 0:02:59]} 8. Qa3 {[%clk 0:02:57]}  Bg4 {[%clk 0:02:57]} 9. O-O {[%clk 0:02:57]}  Bxf3 {[%clk 0:02:54]} 10. Bxf3 {[%clk 0:02:58]}  Qxd4 {[%clk 0:02:53]} 11. Nc3 {[%clk 0:02:58]}  N8d7 {[%clk 0:02:46]} 12. Rd1 {[%clk 0:02:58]}  Qc5 {[%clk 0:02:46]} 13. Qb3 {[%clk 0:02:56]}  Qc4 {[%clk 0:02:45]} 14. Qc2 {[%clk 0:02:54]}  O-O {[%clk 0:02:41]} 15. Bg5 {[%clk 0:02:48]}  Bf6 {[%clk 0:02:36]} 16. Be3 {[%clk 0:02:44]}  Rfd8 {[%clk 0:02:27]} 17. h4 {[%clk 0:02:44]}  Ne5 {[%clk 0:02:10]} 18. Bg2 {[%clk 0:02:45]}  Ng4 {[%clk 0:02:08]} 19. Bf4 {[%clk 0:02:40]}  Nd5 {[%clk 0:01:39]} 20. Bxd5 {[%clk 0:02:09]}  Rxd5 {[%clk 0:01:35]} 21. Rxd5 {[%clk 0:02:02]}  cxd5 {[%clk 0:01:35]} 22. Qb3 {[%clk 0:02:02]}  Qxb3 {[%clk 0:01:20]} 23. axb3 {[%clk 0:02:03]}  e6 {[%clk 0:01:20]} 24. b4 {[%clk 0:01:58]}  Ne5 {[%clk 0:01:14]} 25. Nb5 {[%clk 0:01:51]}  a6 {[%clk 0:01:09]} 26. Nd6 {[%clk 0:01:51]}  b6 {[%clk 0:00:57]} 27. b5 {[%clk 0:01:51]}  a5 {[%clk 0:00:55]} 28. Rc1 {[%clk 0:01:50]}  Nd7 {[%clk 0:00:48]} 29. Rc7 {[%clk 0:01:44]}  Nc5 {[%clk 0:00:30]} 30. Bc1 {[%clk 0:01:14]}  Be5 {[%clk 0:00:28]} 31. Rc6 {[%clk 0:01:11]}  Nb3 {[%clk 0:00:21]} 32. Bh6 {[%clk 0:00:59]}  Bxb2 {[%clk 0:00:20]} 33. Rxb6 {[%clk 0:01:00]}  a4 {[%clk 0:00:20]} 34. Ra6 {[%clk 0:01:01]}  Rxa6 {[%clk 0:00:18]} 35. bxa6 {[%clk 0:01:02]}  Bd4 {[%clk 0:00:00]} 36. Be3 {[%clk 0:00:53]} 1-0


[Site "https://www.chess.com"]

[Event "Titled Tuesday Blitz May 16 Early 2023"]
[White "Wagner, Dennis"]
[Black "Kramnik, Vladimir"]
[WhiteFideId "24650684"]
[BlackFideId "4101588"]
[WhiteElo "2478"]
[BlackElo "2703"]
[Result "1-0"]
[Round "08"]
[TimeControl "180+2"]
[Date "2023.05.16"]
[WhiteClock "0:00:12"]
[BlackClock "0:00:10"]

1. e4 {[%clk 0:03:00]}  c5 {[%clk 0:02:58]} 2. Nf3 {[%clk 0:03:01]}  e6 {[%clk 0:02:58]} 3. d4 {[%clk 0:03:00]}  cxd4 {[%clk 0:02:58]} 4. Nxd4 {[%clk 0:03:00]}  a6 {[%clk 0:02:58]} 5. Nc3 {[%clk 0:02:59]}  d6 {[%clk 0:02:58]} 6. Bd3 {[%clk 0:02:57]}  Nf6 {[%clk 0:02:56]} 7. f4 {[%clk 0:02:51]}  Nbd7 {[%clk 0:02:55]} 8. Qf3 {[%clk 0:02:48]}  Qc7 {[%clk 0:02:51]} 9. g4 {[%clk 0:02:45]}  Nc5 {[%clk 0:02:48]} 10. g5 {[%clk 0:02:43]}  Nfd7 {[%clk 0:02:48]} 11. a4 {[%clk 0:02:08]}  g6 {[%clk 0:02:41]} 12. h4 {[%clk 0:02:05]}  Bg7 {[%clk 0:02:36]} 13. Be3 {[%clk 0:02:06]}  b6 {[%clk 0:02:12]} 14. h5 {[%clk 0:01:51]}  Bb7 {[%clk 0:02:12]} 15. h6 {[%clk 0:01:24]}  Bxd4 {[%clk 0:02:11]} 16. Bxd4 {[%clk 0:01:24]}  e5 {[%clk 0:02:12]} 17. fxe5 {[%clk 0:01:16]}  dxe5 {[%clk 0:02:04]} 18. Be3 {[%clk 0:00:57]}  O-O {[%clk 0:01:58]} 19. O-O-O {[%clk 0:00:53]}  f5 {[%clk 0:01:50]} 20. Bc4+ {[%clk 0:00:32]}  Kh8 {[%clk 0:01:49]} 21. Bd5 {[%clk 0:00:22]}  Bxd5 {[%clk 0:01:33]} 22. Nxd5 {[%clk 0:00:22]}  Qc6 {[%clk 0:01:33]} 23. Bxc5 {[%clk 0:00:20]}  Nxc5 {[%clk 0:01:28]} 24. Qc3 {[%clk 0:00:20]}  Qd6 {[%clk 0:01:09]} 25. Nxb6 {[%clk 0:00:19]}  Nxe4 {[%clk 0:00:54]} 26. Rxd6 {[%clk 0:00:16]}  Nxc3 {[%clk 0:00:54]} 27. bxc3 {[%clk 0:00:17]}  Rad8 {[%clk 0:00:43]} 28. Rxd8 {[%clk 0:00:13]}  Rxd8 {[%clk 0:00:42]} 29. c4 {[%clk 0:00:13]}  Rd6 {[%clk 0:00:10]} 30. Rd1 {[%clk 0:00:12]} 1-0


[Site "https://www.chess.com"]

[Event "Titled Tuesday Blitz May 16 Early 2023"]
[White "Steinberg, Nitzan"]
[Black "Papasimakopoulos, Alexandros"]
[WhiteFideId "2801795"]
[BlackFideId "4244125"]
[WhiteElo "2486"]
[BlackElo "2359"]
[Result "1-0"]
[Round "08"]
[TimeControl "180+2"]
[Date "2023.05.16"]
[WhiteClock "0:01:26"]
[BlackClock "0:00:32"]

1. d4 {[%clk 0:03:00]}  Nf6 {[%clk 0:02:58]} 2. Nf3 {[%clk 0:02:59]}  b6 {[%clk 0:02:58]} 3. Bg5 {[%clk 0:02:56]}  e6 {[%clk 0:02:55]} 4. e4 {[%clk 0:02:55]}  h6 {[%clk 0:02:53]} 5. Bxf6 {[%clk 0:02:55]}  Qxf6 {[%clk 0:02:53]} 6. Nc3 {[%clk 0:02:54]}  Bb4 {[%clk 0:02:42]} 7. Bd3 {[%clk 0:02:50]}  d5 {[%clk 0:02:42]} 8. a3 {[%clk 0:02:46]}  Bxc3+ {[%clk 0:02:39]} 9. bxc3 {[%clk 0:02:47]}  O-O {[%clk 0:02:35]} 10. e5 {[%clk 0:02:42]}  Qe7 {[%clk 0:02:33]} 11. h4 {[%clk 0:02:34]}  c5 {[%clk 0:02:26]} 12. g4 {[%clk 0:02:27]}  Ba6 {[%clk 0:02:16]} 13. h5 {[%clk 0:02:21]}  Bxd3 {[%clk 0:02:10]} 14. Qxd3 {[%clk 0:02:21]}  f6 {[%clk 0:02:11]} 15. Nh4 {[%clk 0:02:20]}  Qc7 {[%clk 0:02:01]} 16. Ng6 {[%clk 0:02:18]}  Rf7 {[%clk 0:02:00]} 17. f4 {[%clk 0:02:14]}  fxe5 {[%clk 0:02:00]} 18. dxe5 {[%clk 0:02:06]}  Nc6 {[%clk 0:01:58]} 19. O-O-O {[%clk 0:02:00]}  Ne7 {[%clk 0:01:55]} 20. Rdf1 {[%clk 0:01:52]}  c4 {[%clk 0:01:32]} 21. Qe3 {[%clk 0:01:51]}  Qc5 {[%clk 0:01:30]} 22. Qxc5 {[%clk 0:01:44]}  bxc5 {[%clk 0:01:31]} 23. f5 {[%clk 0:01:44]}  exf5 {[%clk 0:01:17]} 24. e6 {[%clk 0:01:43]}  Rff8 {[%clk 0:00:56]} 25. Nxe7+ {[%clk 0:01:42]}  Kh7 {[%clk 0:00:56]} 26. gxf5 {[%clk 0:01:43]}  d4 {[%clk 0:00:56]} 27. Rhg1 {[%clk 0:01:39]}  Rad8 {[%clk 0:00:54]} 28. Rg6 {[%clk 0:01:38]}  Rde8 {[%clk 0:00:50]} 29. Nd5 {[%clk 0:01:34]}  Kh8 {[%clk 0:00:43]} 30. Kd2 {[%clk 0:01:28]}  a5 {[%clk 0:00:42]} 31. a4 {[%clk 0:01:28]}  Rg8 {[%clk 0:00:37]} 32. f6 {[%clk 0:01:26]}  Rxe6 {[%clk 0:00:35]} 33. fxg7+ {[%clk 0:01:26]}  Rxg7 {[%clk 0:00:32]} 34. Rxe6 {[%clk 0:01:26]} 1-0


[Site "https://www.chess.com"]

[Event "Titled Tuesday Blitz May 16 Early 2023"]
[White "Sarana, Alexey"]
[Black "Drygalov, Sergey"]
[WhiteFideId "24133795"]
[BlackFideId "24171743"]
[WhiteElo "2714"]
[BlackElo "2533"]
[Result "1/2-1/2"]
[Round "08"]
[TimeControl "180+2"]
[Date "2023.05.16"]
[WhiteClock "0:00:02"]
[BlackClock "0:00:06"]

1. d4 {[%clk 0:02:57]}  Nf6 {[%clk 0:02:59]} 2. c4 {[%clk 0:02:57]}  e6 {[%clk 0:02:59]} 3. Nc3 {[%clk 0:02:58]}  Bb4 {[%clk 0:02:59]} 4. e3 {[%clk 0:02:50]}  O-O {[%clk 0:02:57]} 5. Bd3 {[%clk 0:02:51]}  d5 {[%clk 0:02:56]} 6. a3 {[%clk 0:02:51]}  Bxc3+ {[%clk 0:02:56]} 7. bxc3 {[%clk 0:02:52]}  dxc4 {[%clk 0:02:57]} 8. Bxc4 {[%clk 0:02:53]}  c5 {[%clk 0:02:56]} 9. Ne2 {[%clk 0:02:53]}  b6 {[%clk 0:02:56]} 10. Qd3 {[%clk 0:02:49]}  Nc6 {[%clk 0:02:46]} 11. f3 {[%clk 0:02:45]}  Qc7 {[%clk 0:02:32]} 12. e4 {[%clk 0:02:42]}  Rd8 {[%clk 0:02:32]} 13. Ba2 {[%clk 0:02:07]}  a5 {[%clk 0:02:26]} 14. Bf4 {[%clk 0:01:51]}  e5 {[%clk 0:02:26]} 15. Bg3 {[%clk 0:01:50]}  cxd4 {[%clk 0:02:08]} 16. cxd4 {[%clk 0:01:38]}  Ba6 {[%clk 0:02:08]} 17. Qc3 {[%clk 0:01:07]}  Bxe2 {[%clk 0:02:05]} 18. d5 {[%clk 0:01:07]}  Bb5 {[%clk 0:01:52]} 19. dxc6 {[%clk 0:01:06]}  Re8 {[%clk 0:01:38]} 20. Rc1 {[%clk 0:01:02]}  Rad8 {[%clk 0:01:11]} 21. Kf2 {[%clk 0:00:21]}  Rd3 {[%clk 0:00:46]} 22. Qb2 {[%clk 0:00:21]}  Ba4 {[%clk 0:00:42]} 23. Bc4 {[%clk 0:00:15]}  Rd6 {[%clk 0:00:41]} 24. Be2 {[%clk 0:00:04]}  Bxc6 {[%clk 0:00:23]} 25. Bxe5 {[%clk 0:00:04]}  Ng4+ {[%clk 0:00:10]} 26. fxg4 {[%clk 0:00:03]}  Rxe5 {[%clk 0:00:10]} 27. Qxe5 {[%clk 0:00:03]}  Rf6+ {[%clk 0:00:10]} 28. Qf5 {[%clk 0:00:03]}  Rxf5+ {[%clk 0:00:08]} 29. exf5 {[%clk 0:00:04]}  Qf4+ {[%clk 0:00:06]} 30. Bf3 {[%clk 0:00:04]}  Qd2+ {[%clk 0:00:07]} 31. Kg3 {[%clk 0:00:05]}  Qd6+ {[%clk 0:00:06]} 32. Kh3 {[%clk 0:00:05]}  Qh6+ {[%clk 0:00:06]} 33. Kg3 {[%clk 0:00:02]}  Qd6+ {[%clk 0:00:07]} 34. Kh4 {[%clk 0:00:01]}  Qh6+ {[%clk 0:00:06]} 35. Kg3 {[%clk 0:00:02]}  Qd6+ {[%clk 0:00:06]} 1/2-1/2


[Site "https://www.chess.com"]

[Event "Titled Tuesday Blitz May 16 Early 2023"]
[White "Zhigalko, Sergei"]
[Black "carokannlover213"]
[WhiteFideId "13502956"]
[WhiteElo "2626"]
[BlackElo "2706"]
[Result "1-0"]
[Round "08"]
[TimeControl "180+2"]
[Date "2023.05.16"]
[WhiteClock "0:00:04"]
[BlackClock "0:00:04"]

1. e4 {[%clk 0:03:00]}  e5 {[%clk 0:03:00]} 2. Nf3 {[%clk 0:03:01]}  Nf6 {[%clk 0:02:59]} 3. d4 {[%clk 0:03:01]}  Nxe4 {[%clk 0:02:59]} 4. Bd3 {[%clk 0:03:01]}  Nc6 {[%clk 0:02:59]} 5. d5 {[%clk 0:03:01]}  Nc5 {[%clk 0:02:59]} 6. dxc6 {[%clk 0:03:02]}  e4 {[%clk 0:02:59]} 7. cxb7 {[%clk 0:03:02]}  Bxb7 {[%clk 0:02:57]} 8. Be2 {[%clk 0:03:03]}  exf3 {[%clk 0:02:56]} 9. Bxf3 {[%clk 0:03:04]}  Bxf3 {[%clk 0:02:46]} 10. Qxf3 {[%clk 0:03:04]}  Be7 {[%clk 0:02:44]} 11. O-O {[%clk 0:03:04]}  O-O {[%clk 0:02:43]} 12. Rd1 {[%clk 0:02:56]}  Ne6 {[%clk 0:02:30]} 13. c4 {[%clk 0:02:48]}  c6 {[%clk 0:02:25]} 14. Nc3 {[%clk 0:02:48]}  Rb8 {[%clk 0:02:14]} 15. b3 {[%clk 0:02:45]}  Bf6 {[%clk 0:02:12]} 16. Bb2 {[%clk 0:02:26]}  Nd4 {[%clk 0:02:07]} 17. Qd3 {[%clk 0:02:17]}  d5 {[%clk 0:01:48]} 18. cxd5 {[%clk 0:02:12]}  cxd5 {[%clk 0:01:49]} 19. Rd2 {[%clk 0:02:09]}  Re8 {[%clk 0:01:41]} 20. Rad1 {[%clk 0:02:06]}  Qa5 {[%clk 0:01:30]} 21. h3 {[%clk 0:01:51]}  Rbd8 {[%clk 0:00:44]} 22. Na4 {[%clk 0:01:30]}  Ne6 {[%clk 0:00:30]} 23. Bxf6 {[%clk 0:01:27]}  gxf6 {[%clk 0:00:31]} 24. Qf5 {[%clk 0:01:23]}  Ng7 {[%clk 0:00:20]} 25. Qxf6 {[%clk 0:01:21]}  Re6 {[%clk 0:00:11]} 26. Qc3 {[%clk 0:01:20]}  Qb5 {[%clk 0:00:08]} 27. Qd3 {[%clk 0:00:53]}  Qc6 {[%clk 0:00:05]} 28. Rc2 {[%clk 0:00:52]}  Qd6 {[%clk 0:00:05]} 29. Nc5 {[%clk 0:00:52]}  Re7 {[%clk 0:00:04]} 30. b4 {[%clk 0:00:48]}  Ne6 {[%clk 0:00:04]} 31. g3 {[%clk 0:00:37]}  Ng7 {[%clk 0:00:03]} 32. Rcd2 {[%clk 0:00:33]}  Ne6 {[%clk 0:00:03]} 33. Rc2 {[%clk 0:00:27]}  Nxc5 {[%clk 0:00:02]} 34. Rxc5 {[%clk 0:00:27]}  d4 {[%clk 0:00:02]} 35. Rh5 {[%clk 0:00:18]}  Qg6 {[%clk 0:00:02]} 36. Rh4 {[%clk 0:00:12]}  Qxd3 {[%clk 0:00:01]} 37. Rxd3 {[%clk 0:00:13]}  Re1+ {[%clk 0:00:02]} 38. Kg2 {[%clk 0:00:13]}  Re2 {[%clk 0:00:03]} 39. a3 {[%clk 0:00:10]}  Ra2 {[%clk 0:00:02]} 40. Rg4+ {[%clk 0:00:10]}  Kf8 {[%clk 0:00:02]} 41. Kf3 {[%clk 0:00:08]}  Ra1 {[%clk 0:00:02]} 42. h4 {[%clk 0:00:07]}  Ra2 {[%clk 0:00:02]} 43. Rf4 {[%clk 0:00:06]}  Rc8 {[%clk 0:00:02]} 44. Kg4 {[%clk 0:00:05]}  Rcc2 {[%clk 0:00:02]} 45. Rdf3 {[%clk 0:00:05]}  Kg8 {[%clk 0:00:01]} 46. Rxf7 {[%clk 0:00:05]}  Rc3 {[%clk 0:00:02]} 47. Rf8+ {[%clk 0:00:05]}  Kg7 {[%clk 0:00:02]} 48. R3f7+ {[%clk 0:00:05]}  Kh6 {[%clk 0:00:03]} 49. Rf6+ {[%clk 0:00:05]}  Kg7 {[%clk 0:00:04]} 50. R8f7+ {[%clk 0:00:06]}  Kg8 {[%clk 0:00:04]} 51. Rxa7 {[%clk 0:00:06]}  Raxa3 {[%clk 0:00:02]} 52. Rxa3 {[%clk 0:00:07]}  Rxa3 {[%clk 0:00:03]} 53. Rd6 {[%clk 0:00:07]}  Rd3 {[%clk 0:00:03]} 54. Kf4 {[%clk 0:00:03]}  Kf8 {[%clk 0:00:03]} 55. Ke5 {[%clk 0:00:02]}  Rd2 {[%clk 0:00:03]} 56. Rxd4 {[%clk 0:00:03]}  Rb2 {[%clk 0:00:02]} 57. Kd5 {[%clk 0:00:02]}  Ke7 {[%clk 0:00:02]} 58. f3 {[%clk 0:00:02]}  Kd7 {[%clk 0:00:03]} 59. Kc5+ {[%clk 0:00:02]}  Kc7 {[%clk 0:00:04]} 60. Rg4 {[%clk 0:00:03]}  Rc2+ {[%clk 0:00:04]} 61. Kb5 {[%clk 0:00:03]}  Rf2 {[%clk 0:00:05]} 62. Rg7+ {[%clk 0:00:03]}  Kd6 {[%clk 0:00:05]} 63. Rxh7 {[%clk 0:00:04]}  Rxf3 {[%clk 0:00:06]} 64. Rg7 {[%clk 0:00:04]}  Rf5+ {[%clk 0:00:05]} 65. Kc4 {[%clk 0:00:04]}  Kc6 {[%clk 0:00:05]} 66. Rg6+ {[%clk 0:00:04]}  Kc7 {[%clk 0:00:05]} 67. Rg7+ {[%clk 0:00:04]}  Kc6 {[%clk 0:00:05]} 68. Rg5 {[%clk 0:00:04]}  Kc7 {[%clk 0:00:04]} 69. Rxf5 {[%clk 0:00:04]} 1-0


[Site "https://www.chess.com"]

[Event "Titled Tuesday Blitz May 16 Early 2023"]
[White "Tang, Andrew"]
[Black "Prohaszka, Peter"]
[WhiteFideId "2059630"]
[BlackFideId "726265"]
[WhiteElo "2596"]
[BlackElo "2626"]
[Result "1-0"]
[Round "08"]
[TimeControl "180+2"]
[Date "2023.05.16"]
[WhiteClock "0:00:08"]
[BlackClock "0:00:01"]

1. d4 {[%clk 0:03:00]}  d5 {[%clk 0:02:59]} 2. Bf4 {[%clk 0:03:01]}  Nf6 {[%clk 0:02:58]} 3. e3 {[%clk 0:03:01]}  c5 {[%clk 0:02:58]} 4. dxc5 {[%clk 0:03:01]}  e6 {[%clk 0:02:57]} 5. b4 {[%clk 0:03:01]}  a5 {[%clk 0:02:37]} 6. c3 {[%clk 0:03:00]}  Nc6 {[%clk 0:02:17]} 7. Bb5 {[%clk 0:02:59]}  axb4 {[%clk 0:01:57]} 8. cxb4 {[%clk 0:02:57]}  Ne4 {[%clk 0:01:58]} 9. Ne2 {[%clk 0:02:38]}  g5 {[%clk 0:01:26]} 10. Be5 {[%clk 0:02:33]}  f6 {[%clk 0:01:24]} 11. Bb2 {[%clk 0:02:33]}  g4 {[%clk 0:00:58]} 12. Ng3 {[%clk 0:02:28]}  Nxg3 {[%clk 0:00:41]} 13. hxg3 {[%clk 0:02:24]}  e5 {[%clk 0:00:42]} 14. Nc3 {[%clk 0:02:19]}  Be6 {[%clk 0:00:41]} 15. Qc2 {[%clk 0:02:09]}  Qc7 {[%clk 0:00:31]} 16. a3 {[%clk 0:01:56]}  O-O-O {[%clk 0:00:28]} 17. Bd3 {[%clk 0:01:46]}  h5 {[%clk 0:00:18]} 18. Na4 {[%clk 0:01:35]}  Kb8 {[%clk 0:00:17]} 19. Nb6 {[%clk 0:01:34]}  d4 {[%clk 0:00:08]} 20. Qa4 {[%clk 0:01:27]}  Na7 {[%clk 0:00:08]} 21. exd4 {[%clk 0:01:24]}  Bh6 {[%clk 0:00:07]} 22. O-O {[%clk 0:01:09]}  h4 {[%clk 0:00:07]} 23. gxh4 {[%clk 0:01:09]}  g3 {[%clk 0:00:07]} 24. Rae1 {[%clk 0:01:07]}  Bf4 {[%clk 0:00:06]} 25. Bc1 {[%clk 0:00:44]}  Rxh4 {[%clk 0:00:06]} 26. Bxf4 {[%clk 0:00:42]}  exf4 {[%clk 0:00:05]} 27. fxg3 {[%clk 0:00:42]}  fxg3 {[%clk 0:00:04]} 28. Rxf6 {[%clk 0:00:21]}  Qg7 {[%clk 0:00:04]} 29. Rexe6 {[%clk 0:00:20]}  Qh8 {[%clk 0:00:04]} 30. Kf1 {[%clk 0:00:16]}  Rh1+ {[%clk 0:00:04]} 31. Ke2 {[%clk 0:00:17]}  Qh5+ {[%clk 0:00:04]} 32. Rf3 {[%clk 0:00:16]}  Qh2 {[%clk 0:00:04]} 33. Kd2 {[%clk 0:00:13]}  Qxg2+ {[%clk 0:00:04]} 34. Be2 {[%clk 0:00:13]}  Rh2 {[%clk 0:00:03]} 35. Re8 {[%clk 0:00:09]}  Nc6 {[%clk 0:00:02]} 36. Qa8+ {[%clk 0:00:07]}  Kc7 {[%clk 0:00:02]} 37. Qc8+ {[%clk 0:00:07]}  Rxc8 {[%clk 0:00:01]} 38. Rxc8# {[%clk 0:00:08]} 1-0


[Site "https://www.chess.com"]

[Event "Titled Tuesday Blitz May 16 Early 2023"]
[White "Simonian, Hrair"]
[Black "Tari, Aryan"]
[WhiteFideId "13302337"]
[BlackFideId "1510045"]
[WhiteElo "2447"]
[BlackElo "2571"]
[Result "1-0"]
[Round "08"]
[TimeControl "180+2"]
[Date "2023.05.16"]
[WhiteClock "0:02:14"]
[BlackClock "0:00:11"]

1. e4 {[%clk 0:03:00]}  c5 {[%clk 0:03:00]} 2. Nc3 {[%clk 0:03:00]}  Nc6 {[%clk 0:02:55]} 3. Bb5 {[%clk 0:03:00]}  Nd4 {[%clk 0:02:53]} 4. Bc4 {[%clk 0:03:00]}  e6 {[%clk 0:02:52]} 5. Nge2 {[%clk 0:03:01]}  Nf6 {[%clk 0:02:51]} 6. O-O {[%clk 0:03:01]}  d5 {[%clk 0:02:50]} 7. exd5 {[%clk 0:03:01]}  exd5 {[%clk 0:02:51]} 8. Nxd5 {[%clk 0:03:01]}  Nxd5 {[%clk 0:02:07]} 9. Nxd4 {[%clk 0:03:01]}  cxd4 {[%clk 0:02:08]} 10. Qh5 {[%clk 0:03:01]}  Be6 {[%clk 0:01:58]} 11. Re1 {[%clk 0:03:01]}  Be7 {[%clk 0:01:45]} 12. Rxe6 {[%clk 0:02:59]}  g6 {[%clk 0:01:46]} 13. Qe5 {[%clk 0:02:58]}  fxe6 {[%clk 0:01:41]} 14. Qxh8+ {[%clk 0:02:57]}  Kd7 {[%clk 0:01:42]} 15. Qxd4 {[%clk 0:02:57]}  Qb6 {[%clk 0:01:41]} 16. Qe4 {[%clk 0:02:44]}  Qc5 {[%clk 0:01:04]} 17. b4 {[%clk 0:02:32]}  Qxb4 {[%clk 0:00:53]} 18. Bxd5 {[%clk 0:02:29]}  exd5 {[%clk 0:00:54]} 19. Qxd5+ {[%clk 0:02:29]}  Bd6 {[%clk 0:00:55]} 20. Ba3 {[%clk 0:02:22]}  Qxa3 {[%clk 0:00:20]} 21. Qxb7+ {[%clk 0:02:22]}  Bc7 {[%clk 0:00:20]} 22. Qxa8 {[%clk 0:02:20]}  Qd6 {[%clk 0:00:17]} 23. g3 {[%clk 0:02:20]}  Qe5 {[%clk 0:00:11]} 24. c3 {[%clk 0:02:14]} 1-0


[Site "https://www.chess.com"]

[Event "Titled Tuesday Blitz May 16 Early 2023"]
[White "Boyer, Mahel"]
[Black "Manukyan, Sargis V."]
[WhiteFideId "45102422"]
[BlackFideId "13303465"]
[WhiteElo "2439"]
[BlackElo "2236"]
[Result "0-1"]
[Round "08"]
[TimeControl "180+2"]
[Date "2023.05.16"]
[WhiteClock "0:00:00"]
[BlackClock "0:00:21"]

1. Nf3 {[%clk 0:02:55]}  Nf6 {[%clk 0:02:57]} 2. g3 {[%clk 0:02:55]}  b5 {[%clk 0:02:56]} 3. Bg2 {[%clk 0:02:55]}  Bb7 {[%clk 0:02:56]} 4. d3 {[%clk 0:02:56]}  c5 {[%clk 0:02:54]} 5. e4 {[%clk 0:02:56]}  e6 {[%clk 0:02:50]} 6. O-O {[%clk 0:02:45]}  d5 {[%clk 0:02:47]} 7. exd5 {[%clk 0:02:35]}  Nxd5 {[%clk 0:02:28]} 8. a4 {[%clk 0:02:17]}  b4 {[%clk 0:02:22]} 9. Nbd2 {[%clk 0:02:10]}  Be7 {[%clk 0:02:20]} 10. d4 {[%clk 0:02:09]}  O-O {[%clk 0:02:14]} 11. dxc5 {[%clk 0:02:09]}  Na6 {[%clk 0:02:09]} 12. c6 {[%clk 0:02:09]}  Bxc6 {[%clk 0:02:06]} 13. Nd4 {[%clk 0:02:10]}  Bb7 {[%clk 0:02:02]} 14. N2b3 {[%clk 0:02:09]}  Rc8 {[%clk 0:01:53]} 15. Nb5 {[%clk 0:02:08]}  Qb6 {[%clk 0:01:41]} 16. Qe2 {[%clk 0:01:56]}  Nc5 {[%clk 0:01:30]} 17. Nd2 {[%clk 0:01:47]}  Nxa4 {[%clk 0:00:56]} 18. Rxa4 {[%clk 0:01:39]}  a6 {[%clk 0:00:56]} 19. c4 {[%clk 0:00:49]}  axb5 {[%clk 0:00:55]} 20. cxb5 {[%clk 0:00:50]}  Rc5 {[%clk 0:00:43]} 21. Ne4 {[%clk 0:00:12]}  Rxb5 {[%clk 0:00:40]} 22. Qxb5 {[%clk 0:00:11]}  Qxb5 {[%clk 0:00:38]} 23. Ra7 {[%clk 0:00:07]}  Ra8 {[%clk 0:00:31]} 24. Rxa8+ {[%clk 0:00:06]}  Bxa8 {[%clk 0:00:32]} 25. Bd2 {[%clk 0:00:06]}  h6 {[%clk 0:00:28]} 26. Ra1 {[%clk 0:00:06]}  Bc6 {[%clk 0:00:25]} 27. Rc1 {[%clk 0:00:00]}  Qb7 {[%clk 0:00:21]} 0-1


[Site "https://www.chess.com"]

[Event "Titled Tuesday Blitz May 16 Early 2023"]
[White "Visakh N R"]
[Black "Orlov, Georgi"]
[WhiteFideId "25012223"]
[BlackFideId "2011271"]
[WhiteElo "2466"]
[BlackElo "2635"]
[Result "0-1"]
[Round "08"]
[TimeControl "180+2"]
[Date "2023.05.16"]
[WhiteClock "0:00:58"]
[BlackClock "0:00:18"]

1. e4 {[%clk 0:03:00]}  d6 {[%clk 0:02:59]} 2. Nf3 {[%clk 0:02:58]}  Nf6 {[%clk 0:02:59]} 3. Nc3 {[%clk 0:02:55]}  Bg4 {[%clk 0:02:58]} 4. Be2 {[%clk 0:02:54]}  e6 {[%clk 0:02:58]} 5. O-O {[%clk 0:02:54]}  Be7 {[%clk 0:02:56]} 6. d4 {[%clk 0:02:54]}  d5 {[%clk 0:02:51]} 7. exd5 {[%clk 0:02:51]}  exd5 {[%clk 0:02:51]} 8. Bg5 {[%clk 0:02:48]}  O-O {[%clk 0:02:49]} 9. Ne5 {[%clk 0:02:48]}  Bxe2 {[%clk 0:02:46]} 10. Qxe2 {[%clk 0:02:48]}  c6 {[%clk 0:02:40]} 11. Rfe1 {[%clk 0:02:48]}  Re8 {[%clk 0:02:36]} 12. Qf3 {[%clk 0:02:47]}  Nbd7 {[%clk 0:02:29]} 13. Nxd7 {[%clk 0:02:37]}  Nxd7 {[%clk 0:02:18]} 14. Bxe7 {[%clk 0:02:26]}  Rxe7 {[%clk 0:02:18]} 15. Re3 {[%clk 0:02:18]}  Rxe3 {[%clk 0:02:12]} 16. Qxe3 {[%clk 0:02:19]}  Qe8 {[%clk 0:02:12]} 17. Re1 {[%clk 0:02:18]}  Qxe3 {[%clk 0:02:11]} 18. Rxe3 {[%clk 0:02:18]}  Kf8 {[%clk 0:02:11]} 19. Ne2 {[%clk 0:02:18]}  Nb6 {[%clk 0:02:03]} 20. b3 {[%clk 0:02:16]}  Re8 {[%clk 0:02:02]} 21. Rxe8+ {[%clk 0:02:16]}  Kxe8 {[%clk 0:02:02]} 22. f3 {[%clk 0:02:16]}  Nc8 {[%clk 0:01:59]} 23. Kf2 {[%clk 0:02:16]}  Nd6 {[%clk 0:02:00]} 24. g4 {[%clk 0:02:16]}  Ke7 {[%clk 0:01:56]} 25. Ke3 {[%clk 0:02:16]}  g5 {[%clk 0:01:51]} 26. Ng3 {[%clk 0:02:13]}  Ke6 {[%clk 0:01:51]} 27. a4 {[%clk 0:02:10]}  f5 {[%clk 0:01:45]} 28. Kd3 {[%clk 0:01:59]}  h6 {[%clk 0:01:38]} 29. c4 {[%clk 0:01:59]}  fxg4 {[%clk 0:01:34]} 30. fxg4 {[%clk 0:01:58]}  a5 {[%clk 0:01:22]} 31. c5 {[%clk 0:01:55]}  Ne8 {[%clk 0:01:19]} 32. Nf5 {[%clk 0:01:53]}  h5 {[%clk 0:01:17]} 33. Ne3 {[%clk 0:01:46]}  hxg4 {[%clk 0:01:13]} 34. Nxg4 {[%clk 0:01:47]}  Kf5 {[%clk 0:01:11]} 35. Ne5 {[%clk 0:01:44]}  Ke6 {[%clk 0:00:46]} 36. Nf3 {[%clk 0:01:35]}  Kf5 {[%clk 0:00:44]} 37. Ne5 {[%clk 0:01:35]}  Ke6 {[%clk 0:00:45]} 38. Ke3 {[%clk 0:01:16]}  Nf6 {[%clk 0:00:43]} 39. Kf3 {[%clk 0:01:16]}  Ne4 {[%clk 0:00:33]} 40. Kg4 {[%clk 0:01:14]}  Nxc5 {[%clk 0:00:25]} 41. Nf3 {[%clk 0:01:10]}  Nxb3 {[%clk 0:00:23]} 42. Kxg5 {[%clk 0:01:10]}  b5 {[%clk 0:00:20]} 43. axb5 {[%clk 0:01:08]}  cxb5 {[%clk 0:00:20]} 44. h4 {[%clk 0:01:08]}  a4 {[%clk 0:00:20]} 45. Kg6 {[%clk 0:01:07]}  a3 {[%clk 0:00:20]} 46. Ne1 {[%clk 0:00:58]}  Nxd4 {[%clk 0:00:18]} 0-1


[Site "https://www.chess.com"]